fUST/lending_fUST_20251212
["ID","MTS","AMOUNT","RATE_DAILY","PERIOD"]
[398254787,1765470645967,-232.66,0.000126,2]
[398254789,1765470645976,-198.22265886,0.00012618,2]
[398254792,1765470645986,-7702.06940102,0.00012676,2]
[398254794,1765470645995,-823.8396532,0.00012679,2]
[398254795,1765470646005,-1751.9143812,0.00012679,2]
[398254798,1765470646015,-1000.0,0.000127,2]
[398254800,1765470646024,-714.36635874,0.000127,2]
[398254801,1765470646034,-232.66,0.000127,2]
[398254803,1765470646044,-533.88981491,0.00012724,2]
[398254804,1765470646054,-500.0,0.00012725,2]
[398254806,1765470646063,-500.0,0.00012725,2]
[398254807,1765470646073,-823.0,0.00012774,2]
[398254808,1765470646085,-500.0,0.00012776,2]
[398254809,1765470646095,-6553.77446664,0.00012776,2]
[398254810,1765470646105,-151.0,0.000128,2]
[398254811,1765470646118,-151.0,0.000128,2]
[398254812,1765470646127,-151.0,0.000128,2]
[398254813,1765470646137,-151.0,0.000128,2]
[398254814,1765470646147,-151.0,0.000128,2]
[398254815,1765470646158,-151.0,0.000128,2]
[398254816,1765470646169,-151.0,0.000128,2]
[398254817,1765470646178,-232.66,0.000128,2]
[398254818,1765470646188,-500.0,0.00012862,2]
[398254819,1765470646198,-500.0,0.00012862,2]
[398254820,1765470646207,-169.821118,0.00012876,2]
[398254821,1765470646216,-500.0,0.00012876,2]
[398254822,1765470646226,-500.0,0.00012876,2]
[398254823,1765470646236,-2302.959549,0.00012876,2]
[398254824,1765470646246,-500.0,0.00012876,2]
[398254825,1765470646255,-500.0,0.00012876,2]
[398254826,1765470646265,-500.0,0.00012876,2]
[398254827,1765470646275,-500.0,0.00012876,2]
[398254828,1765470646284,-516.48,0.00012876,2]
[398254829,1765470646294,-500.0,0.00012876,2]
[398254830,1765470646303,-500.0,0.00012876,2]
[398254831,1765470646313,-726.32,0.00012876,2]
[398254832,1765470646323,-500.0,0.00012876,2]
[398254833,1765470646333,-500.0,0.00012876,2]
[398254834,1765470646343,-500.0,0.00012876,2]
[398254835,1765470646352,-705.74,0.00012876,2]
[398254836,1765470646364,-500.0,0.00012876,2]
[398254837,1765470646374,-500.0,0.00012876,2]
[398254838,1765470646383,-1543.94,0.00012876,2]
[398254839,1765470646392,-953.49,0.00012876,2]
[398254840,1765470646402,-500.0,0.00012876,2]
[398254841,1765470646412,-1793.99,0.00012876,2]
[398254842,1765470646421,-500.0,0.00012876,2]
[398254843,1765470646431,-442.11681064,0.00012876,2]
[398254845,1765470687310,150.0,6.996e-05,2]
[398254846,1765470687742,201.21,7.33e-05,2]
[398254847,1765470688168,301.82,7.663e-05,2]
[398254848,1765470688560,346.98,7.996e-05,2]
[398254849,1765470688589,55.44,7.996e-05,2]
[398254850,1765470689431,503.03,8.329e-05,2]
[398254851,1765470691372,200.0,0.00014399,120]
[398254854,1765470694824,-603.64,8.662e-05,2]
[398254856,1765470769363,150.0,6.922e-05,2]
[398254857,1765470769538,281.82,7.252e-05,2]
[398254858,1765470769849,422.74,7.581e-05,2]
[398254859,1765470770291,563.65,7.911e-05,2]
[398254860,1765470770719,704.56,8.241e-05,2]
[398254861,1765470771150,845.47,8.57e-05,2]
[398254862,1765470811225,200.0,0.00016488,120]
[398254863,1765470848908,150.0,7.432e-05,2]
[398254864,1765470849337,206.27,7.786e-05,2]
[398254865,1765470850286,309.4,8.14e-05,2]
[398254866,1765470850698,412.54,8.494e-05,2]
[398254868,1765470930092,150.0,6.929e-05,2]
[398254869,1765470930521,178.82,7.259e-05,2]
[398254870,1765470930922,268.24,7.589e-05,2]
[398254871,1765470931316,357.65,7.918e-05,2]
[398254872,1765470932291,447.06,8.248e-05,2]
[398254873,1765470932691,536.47,8.578e-05,2]
[398254875,1765470991035,200.0,0.00017428,120]
[398254877,1765471009317,150.0,6.919e-05,2]
[398254878,1765471009744,150.0,7.249e-05,2]
[398254879,1765471010864,194.23,7.578e-05,2]
[398254880,1765471010940,258.97,7.908e-05,2]
[398254881,1765471011040,323.72,8.237e-05,2]
[398254882,1765471011436,388.46,8.567e-05,2]
[398254884,1765471087446,150.0,6.93e-05,2]
[398254885,1765471087903,150.0,7.26e-05,2]
[398254886,1765471088865,197.68,7.59e-05,2]
[398254887,1765471089228,263.57,7.92e-05,2]
[398254888,1765471089651,329.46,8.25e-05,2]
[398254889,1765471090109,395.35,8.58e-05,2]
[398254890,1765471166036,150.0,6.94e-05,2]
[398254891,1765471166457,150.0,7.27e-05,2]
[398254892,1765471166844,150.0,7.6e-05,2]
[398254893,1765471167478,187.92,7.931e-05,2]
[398254894,1765471167670,234.9,8.261e-05,2]
[398254895,1765471168326,281.87,8.592e-05,2]
[398254897,1765471242560,150.0,6.929e-05,2]
[398254898,1765471242955,150.0,7.259e-05,2]
[398254899,1765471243350,150.0,7.589e-05,2]
[398254900,1765471243760,150.0,7.919e-05,2]
[398254901,1765471244389,161.41,8.248e-05,2]
[398254902,1765471244793,193.7,8.578e-05,2]
[398254903,1765471316705,150.0,6.931e-05,2]
[398254904,1765471317247,150.0,7.261e-05,2]
[398254905,1765471317652,150.0,7.591e-05,2]
[398254906,1765471318069,150.0,7.921e-05,2]
[398254907,1765471318549,150.0,8.251e-05,2]
[398254908,1765471318955,150.0,8.581e-05,2]
[398254915,1765471388192,150.0,6.928e-05,2]
[398254916,1765471388631,150.0,7.258e-05,2]
[398254917,1765471389068,150.0,7.588e-05,2]
[398254918,1765471389829,150.0,7.918e-05,2]
[398255048,1765471837883,-150.0,9.662e-05,2]
[398255049,1765471837894,-602.73625706,9.887e-05,2]
[398255050,1765471837934,-1484.43880698,9.887e-05,2]
[398255051,1765471837944,-220.0,9.999e-05,2]
[398255052,1765471837954,-1200.0,9.999e-05,2]
[398255053,1765471837963,-10000.0,0.0001,2]
[398255054,1765471837973,-150.68,0.0001,2]
[398255055,1765471837983,-150.68,0.000101,2]
[398255056,1765471837993,-150.68,0.000102,2]
[398255057,1765471838003,-150.68,0.000103,2]
[398255058,1765471838013,-150.68,0.000103,2]
[398255059,1765471838023,-150.68,0.000104,2]
[398255060,1765471838033,-2156.0,0.00010417,2]
[398255061,1765471838044,-1360.0,0.00010417,2]
[398255062,1765471838054,-631.0,0.00010417,2]
[398255063,1765471838065,-415.0,0.00010417,2]
[398255064,1765471838075,-150.0,0.00010417,2]
[398255065,1765471838085,-150.68,0.000105,2]
[398255066,1765471838096,-150.68,0.000106,2]
[398255067,1765471838106,-300.0,0.00010624,2]
[398255068,1765471838116,-300.0,0.00010624,2]
[398255069,1765471838125,-300.0,0.00010624,2]
[398255070,1765471838136,-300.0,0.00010624,2]
[398255071,1765471838146,-300.0,0.00010624,2]
[398255072,1765471838156,-300.0,0.00010624,2]
[398255073,1765471838166,-300.0,0.00010624,2]
[398255074,1765471838177,-300.0,0.00010624,2]
[398255075,1765471838187,-300.0,0.00010624,2]
[398255076,1765471838198,-300.0,0.00010624,2]
[398255077,1765471838208,-300.0,0.00010624,2]
[398255078,1765471838218,-300.0,0.00010624,2]
[398255079,1765471838228,-300.0,0.00010624,2]
[398255080,1765471838238,-300.0,0.00010624,2]
[398255081,1765471838249,-300.0,0.00010624,2]
[398255082,1765471838259,-150.68,0.000107,2]
[398255083,1765471838269,-150.68,0.000108,2]
[398255084,1765471838280,-600.0,0.00010835,2]
[398255085,1765471838290,-150.68,0.000109,2]
[398255086,1765471838299,-1680.0,0.00010999,2]
[398255087,1765471838310,-150.68,0.00011,2]
[398255088,1765471838321,-150.68,0.00011,2]
[398255089,1765471838330,-254.09899871,0.00011096,2]
[398255090,1765471838340,-150.68,0.000111,2]
[398255091,1765471838350,-150.68,0.000112,2]
[398255092,1765471838359,-150.68,0.000113,2]
[398255093,1765471838368,-150.68,0.000114,2]
[398255094,1765471838378,-150.68,0.000115,2]
[398255095,1765471838388,-242.26040088,0.00011524,2]
[398255096,1765471838398,-150.68,0.000116,2]
[398255097,1765471838407,-177.0,0.00011662,2]
[398255098,1765471838417,-295.30641892,0.00011679,2]
[398255099,1765471838427,-160.0,0.00011679,2]
[398255100,1765471838437,-150.68,0.000117,2]
[398255101,1765471838446,-150.68,0.000117,2]
[398255102,1765471838456,-182.285,0.000118,2]
[398255103,1765471838467,-150.68,0.000118,2]
[398255104,1765471838476,-150.68,0.000119,2]
[398255105,1765471838486,-720.0,0.00011919,2]
[398255106,1765471838496,-150.68,0.00012,2]
[398255107,1765471838506,-1800.0,0.00012082,2]
[398255108,1765471838516,-203.51,0.000121,4]
[398255109,1765471838526,-150.68,0.000121,2]
[398255110,1765471838536,-195.46515769,0.00012183,2]
[398255111,1765471838547,-514.84070869,0.00012194,2]
[398255112,1765471838561,-150.68,0.000122,2]
[398255113,1765471838571,-150.68,0.000123,2]
[398255114,1765471838581,-150.68,0.000123,2]
[398255115,1765471838591,-23290.05090325,0.00012388,2]
[398255151,1765471840192,-439.31,0.00011679,2]
[398255153,1765471840205,-60.69,0.00011679,2]
[398255155,1765471840216,-238.5991204,0.00012388,2]
[398255157,1765471840228,-3079.28350416,0.00012388,2]
[398255159,1765471840241,-23817.0614023,0.00012388,2]
[398255163,1765471840277,-444.84375004,0.00012388,2]
[398255207,1765471843245,-779.33406792,0.00012388,2]
[398255225,1765471845931,-739.06817421,0.00012388,2]
[398255298,1765471911736,150.0,7.408e-05,2]
[398255299,1765471912187,150.0,7.761e-05,2]
[398255300,1765471912747,150.0,8.114e-05,2]
[398255301,1765471913022,150.0,8.467e-05,2]
[398255303,1765471980707,150.0,6.934e-05,2]
[398255304,1765471981142,150.0,7.264e-05,2]
[398255309,1765472745498,-549.0,9.244e-05,2]
[398255310,1765472745525,-300.0,9.244e-05,2]
[398255311,1765472745553,-150.38933832,9.244e-05,2]
[398255312,1765472745579,-18264.9844014,9.245e-05,2]
[398255313,1765472745603,-50000.0,9.428e-05,2]
[398255314,1765472745627,-500.0,9.428e-05,2]
[398255315,1765472745653,-500.0,9.428e-05,2]
[398255316,1765472745677,-500.0,9.428e-05,2]
[398255317,1765472745699,-500.0,9.428e-05,2]
[398255318,1765472745722,-500.0,9.428e-05,2]
[398255319,1765472745745,-500.0,9.428e-05,2]
[398255320,1765472745768,-497.65974588,9.428e-05,2]
[398255321,1765472745789,-533.0518731,9.428e-05,2]
[398255322,1765472745812,-500.0,9.428e-05,2]
[398255323,1765472745835,-500.0,9.428e-05,2]
[398255324,1765472745860,-561.69678466,9.428e-05,2]
[398255325,1765472745883,-500.0,9.428e-05,2]
[398255326,1765472745909,-500.0,9.428e-05,2]
[398255327,1765472745933,-530.31606915,9.428e-05,2]
[398255328,1765472745958,-300.0,9.429e-05,2]
[398255329,1765472745983,-300.0,9.429e-05,2]
[398255330,1765472746006,-300.0,9.429e-05,2]
[398255331,1765472746259,-300.0,9.429e-05,2]
[398255332,1765472746287,-300.0,9.429e-05,2]
[398255333,1765472746314,-300.0,9.429e-05,2]
[398255334,1765472746341,-300.0,9.429e-05,2]
[398255335,1765472746365,-300.0,9.429e-05,2]
[398255336,1765472746390,-300.0,9.429e-05,2]
[398255337,1765472746413,-300.0,9.429e-05,2]
[398255338,1765472746438,-300.0,9.429e-05,2]
[398255339,1765472746464,-300.0,9.429e-05,2]
[398255340,1765472746491,-300.0,9.429e-05,2]
[398255341,1765472746518,-300.0,9.429e-05,2]
[398255342,1765472746541,-300.0,9.429e-05,2]
[398255343,1765472746564,-600.0,9.617e-05,2]
[398255344,1765472746586,-2644.6691024,9.783e-05,2]
[398255345,1765472746607,-969.2119331,9.935e-05,2]
[398255346,1765472746629,-10000.0,0.0001,2]
[398255347,1765472746653,-161.22,0.0001,2]
[398255348,1765472779568,364.75,0.0001,2]
[398255349,1765472800426,500.0,9.428e-05,2]
[398255350,1765472800499,500.0,9.428e-05,2]
[398255351,1765472800535,500.0,9.428e-05,2]
[398255352,1765472800692,500.0,9.428e-05,2]
[398255353,1765472800732,500.0,9.428e-05,2]
[398255354,1765472800767,500.0,9.428e-05,2]
[398255355,1765472800892,395.88858297,9.428e-05,2]
[398255356,1765472800926,585.05586671,9.428e-05,2]
[398255357,1765472801028,392.10630231,9.428e-05,2]
[398255358,1765472829491,-300.0,9.427e-05,2]
[398255359,1765472829515,-107.89369769,9.428e-05,2]
[398255360,1765472829538,-500.0,9.428e-05,2]
[398255361,1765472829560,-500.0,9.428e-05,2]
[398255362,1765472829584,-500.0,9.428e-05,2]
[398255363,1765472829609,-500.0,9.428e-05,2]
[398255364,1765472829631,-500.0,9.428e-05,2]
[398255365,1765472829653,-500.0,9.428e-05,2]
[398255366,1765472829675,-383.41479247,9.428e-05,2]
[398255367,1765472829697,-500.0,9.428e-05,2]
[398255368,1765472829719,-500.0,9.428e-05,2]
[398255369,1765472829740,-500.0,9.428e-05,2]
[398255370,1765472829762,-500.0,9.428e-05,2]
[398255371,1765472829785,-500.0,9.428e-05,2]
[398255372,1765472829808,-500.0,9.428e-05,2]
[398255373,1765472841556,168.33,0.0001,2]
[398255393,1765472899183,363.86,0.0001,2]
[398255394,1765472959945,175.28,0.0001,2]
[398255395,1765473021521,360.09,0.0001,2]
[398255433,1765473032005,-360.09,0.000101,2]
[398255435,1765473032015,-150.0,0.0001015,2]
[398255437,1765473032025,-360.09,0.000102,2]
[398255439,1765473032035,-360.09,0.000102,2]
[398255441,1765473032045,-564.0,0.000103,2]
[398255443,1765473032054,-360.09,0.000103,2]
[398255445,1765473032063,-360.09,0.000104,2]
[398255446,1765473032073,-300.0,0.00010416,2]
[398255447,1765473032082,-300.0,0.00010416,2]
[398255448,1765473032091,-300.0,0.00010416,2]
[398255450,1765473032101,-1200.0,0.00010416,2]
[398255452,1765473032111,-300.0,0.00010416,2]
[398255454,1765473032120,-2156.0,0.00010417,2]
[398255456,1765473032130,-1360.0,0.00010417,2]
[398255458,1765473032140,-631.0,0.00010417,2]
[398255460,1765473032149,-415.0,0.00010447,2]
[398255462,1765473032159,-360.09,0.000105,2]
[398255464,1765473032168,-360.09,0.000106,2]
[398255466,1765473032178,-300.0,0.00010624,2]
[398255469,1765473032188,-300.0,0.00010624,2]
[398255471,1765473032197,-300.0,0.00010624,2]
[398255472,1765473032207,-300.0,0.00010624,2]
[398255474,1765473032217,-300.0,0.00010624,2]
[398255477,1765473032226,-300.0,0.00010624,2]
[398255479,1765473032235,-300.0,0.00010624,2]
[398255480,1765473032245,-300.0,0.00010624,2]
[398255481,1765473032255,-300.0,0.00010624,2]
[398255482,1765473032264,-300.0,0.00010624,2]
[398255483,1765473032274,-300.0,0.00010624,2]
[398255484,1765473032284,-300.0,0.00010624,2]
[398255485,1765473032294,-300.0,0.00010624,2]
[398255486,1765473032304,-300.0,0.00010624,2]
[398255487,1765473032313,-300.0,0.00010624,2]
[398255488,1765473032323,-360.09,0.000107,2]
[398255489,1765473032333,-360.09,0.000107,2]
[398255490,1765473032343,-360.09,0.000108,2]
[398255491,1765473032353,-360.09,0.000109,2]
[398255492,1765473032363,-156.25537648,0.00010986,2]
[398255493,1765473032372,-360.09,0.00011,2]
[398255494,1765473032382,-360.09,0.000111,2]
[398255495,1765473032392,-360.09,0.000111,2]
[398255496,1765473032401,-600.0,0.00011177,2]
[398255497,1765473032411,-360.09,0.000112,2]
[398255498,1765473032422,-182.22171417,0.0001127,2]
[398255499,1765473032431,-327.99908551,0.0001127,2]
[398255500,1765473032441,-583.10948535,0.0001127,2]
[398255501,1765473032451,-911.10857087,0.0001127,2]
[398255502,1765473032461,-178.94419393,0.0001127,2]
[398255503,1765473032470,-322.09954907,0.0001127,2]
[398255504,1765473032480,-572.62142057,0.0001127,2]
[398255505,1765473032489,-894.72096964,0.0001127,2]
[398255506,1765473032500,-360.09,0.000113,2]
[398255507,1765473032510,-360.09,0.000114,2]
[398255508,1765473032519,-239.84454361,0.00011426,2]
[398255509,1765473032531,-300.0,0.00011452,2]
[398255510,1765473032541,-332.0,0.00011452,2]
[398255511,1765473032551,-420.0,0.00011452,2]
[398255512,1765473032562,-300.0,0.00011452,2]
[398255513,1765473032571,-360.09,0.000115,2]
[398255514,1765473032582,-160.0,0.00011544,2]
[398255515,1765473032592,-295.30641892,0.00011544,2]
[398255516,1765473032601,-392.05097618,0.00011552,2]
[398255517,1765473032611,-384.99937414,0.00011552,2]
[398255518,1765473032621,-360.09,0.000116,2]
[398255519,1765473032631,-360.09,0.000116,2]
[398255520,1765473032640,-360.09,0.000117,2]
[398255521,1765473032649,-360.09,0.000118,2]
[398255522,1765473032659,-182.285,0.000119,2]
[398255523,1765473032668,-360.09,0.000119,2]
[398255524,1765473032677,-242.74978326,0.00012,2]
[398255525,1765473032687,-360.09,0.00012,2]
[398255526,1765473032697,-360.09,0.00012,2]
[398255527,1765473032707,-2000.0,0.00012099,3]
[398255528,1765473032716,-360.09,0.000121,2]
[398255529,1765473032726,-514.84070869,0.00012124,2]
[398255530,1765473032743,-3659.84176861,0.0001214,2]
[398255531,1765473032753,-177.0,0.0001215,2]
[398255532,1765473032762,-360.09,0.000122,2]
[398255533,1765473032774,-720.0,0.00012295,2]
[398255534,1765473032784,-360.09,0.000123,2]
[398255535,1765473032793,-596.9515814,0.00012329,2]
[398255536,1765473032803,-442.7918868,0.00012329,2]
[398255537,1765473032814,-302.1267499,0.00012329,2]
[398255538,1765473032823,-302.1267499,0.00012329,2]
[398255539,1765473032832,-302.1267499,0.00012329,2]
[398255540,1765473032842,-1600.0,0.00012356,2]
[398255541,1765473032851,-460.7502946,0.00012386,2]
[398255542,1765473032861,-500.0,0.00012386,2]
[398255543,1765473032871,-500.0,0.00012386,2]
[398255544,1765473032880,-500.0,0.00012386,2]
[398255545,1765473032890,-500.0,0.00012386,2]
[398255546,1765473032899,-500.0,0.00012386,2]
[398255547,1765473032908,-500.0,0.00012386,2]
[398255548,1765473032918,-500.0,0.00012386,2]
[398255549,1765473032927,-500.0,0.00012386,2]
[398255550,1765473032936,-500.0,0.00012386,2]
[398255551,1765473032945,-500.0,0.00012386,2]
[398255552,1765473032956,-500.0,0.00012386,2]
[398255553,1765473032969,-500.0,0.00012386,2]
[398255554,1765473032979,-500.0,0.00012386,2]
[398255555,1765473032989,-500.0,0.00012386,2]
[398255556,1765473032999,-500.0,0.00012386,2]
[398255557,1765473033008,-500.0,0.00012386,2]
[398255558,1765473033018,-500.0,0.00012386,2]
[398255559,1765473033088,-588.35212421,0.00012386,2]
[398255560,1765473033098,-500.0,0.00012386,2]
[398255561,1765473033108,-500.0,0.00012386,2]
[398255562,1765473033117,-500.0,0.00012386,2]
[398255563,1765473033127,-500.0,0.00012386,2]
[398255564,1765473033136,-500.0,0.00012386,2]
[398255565,1765473033145,-500.0,0.00012386,2]
[398255566,1765473033155,-500.0,0.00012386,2]
[398255567,1765473033164,-500.0,0.00012386,2]
[398255568,1765473033174,-500.0,0.00012386,2]
[398255569,1765473033184,-500.0,0.00012386,2]
[398255570,1765473033194,-500.0,0.00012386,2]
[398255571,1765473033203,-500.0,0.00012386,2]
[398255572,1765473033213,-500.0,0.00012386,2]
[398255573,1765473033223,-500.0,0.00012386,2]
[398255574,1765473033232,-500.0,0.00012386,2]
[398255575,1765473033241,-500.0,0.00012386,2]
[398255576,1765473033250,-209.17880396,0.00012386,2]
[398255577,1765473033259,-500.0,0.00012386,2]
[398255578,1765473033268,-500.0,0.00012386,2]
[398255579,1765473033278,-500.0,0.00012386,2]
[398255580,1765473033288,-264.82386583,0.00012386,2]
[398255581,1765473033298,-2000.0,0.00012387,2]
[398255582,1765473033307,-151.0,0.000124,2]
[398255583,1765473033316,-360.09,0.000124,2]
[398255584,1765473033326,-101.91246479,0.000124,2]
[398255615,1765473038024,-258.17753521,0.000124,2]
[398255617,1765473038036,-500.0,0.00012488,2]
[398255619,1765473038047,-151.0,0.000125,2]
[398255621,1765473038057,-360.09,0.000125,2]
[398255623,1765473038067,-587.0,0.00012592,2]
[398255625,1765473038077,-151.0,0.000126,2]
[398255627,1765473038087,-151.0,0.000126,2]
[398255629,1765473038097,-360.09,0.000126,2]
[398255631,1765473038106,-678.83219668,0.00012604,2]
[398255795,1765473040291,-121.16780332,0.00012604,2]
[398255796,1765473040301,-198.22265886,0.00012618,2]
[398255797,1765473040311,-160.0,0.0001263,3]
[398255798,1765473040321,-23.79140088,0.00012672,2]
[398255799,1765473040333,-510.09841403,0.00012672,2]
[398255800,1765473040342,-448420.28032854,0.00012676,2]
[398255811,1765473043486,-441579.71967146,0.00012676,2]
[398255812,1765473043496,-151.0,0.000127,2]
[398255813,1765473043507,-360.09,0.000127,2]
[398255814,1765473043516,-904.70776909,0.00012734,2]
[398255815,1765473043526,-151.0,0.000128,2]
[398255816,1765473043536,-151.0,0.000128,2]
[398255817,1765473043546,-360.09,0.000128,2]
[398255818,1765473043556,-151.0,0.00012862,2]
[398255819,1765473043566,-500.0,0.00012875,2]
[398255820,1765473043575,-500.0,0.00012875,2]
[398255821,1765473043585,-500.0,0.00012875,2]
[398255822,1765473043594,-300.35415231,0.00012875,2]
[398255823,1765473043604,-500.0,0.00012875,2]
[398255824,1765473043614,-500.0,0.00012875,2]
[398255825,1765473043623,-500.0,0.00012875,2]
[398255826,1765473043633,-500.0,0.00012875,2]
[398255827,1765473043643,-500.0,0.00012875,2]
[398255828,1765473043652,-500.0,0.00012875,2]
[398255829,1765473043662,-500.0,0.00012875,2]
[398255830,1765473043672,-500.0,0.00012875,2]
[398255831,1765473043682,-500.0,0.00012875,2]
[398255832,1765473043692,-500.0,0.00012875,2]
[398255833,1765473043701,-500.0,0.00012875,2]
[398255834,1765473043711,-500.0,0.00012875,2]
[398255835,1765473043720,-500.0,0.00012875,2]
[398255836,1765473043729,-185.15903397,0.00012875,2]
[398255837,1765473043739,-579.61132378,0.00012875,2]
[398255838,1765473043749,-500.0,0.00012876,2]
[398255839,1765473043759,-500.0,0.00012876,2]
[398255840,1765473043769,-500.0,0.00012876,2]
[398255841,1765473043778,-500.0,0.00012876,2]
[398255842,1765473043788,-500.0,0.00012876,2]
[398255843,1765473043798,-500.0,0.00012876,2]
[398255844,1765473043808,-500.0,0.00012876,2]
[398255845,1765473043817,-500.0,0.00012876,2]
[398255846,1765473043827,-500.0,0.00012876,2]
[398255847,1765473043836,-500.0,0.00012876,2]
[398255848,1765473043845,-500.0,0.00012876,2]
[398255849,1765473043855,-500.0,0.00012876,2]
[398255850,1765473043865,-935.65,0.00012876,2]
[398255851,1765473043876,-500.0,0.00012876,2]
[398255852,1765473043885,-500.0,0.00012876,2]
[398255853,1765473043895,-500.0,0.00012876,2]
[398255854,1765473043904,-733.38,0.00012876,2]
[398255855,1765473043914,-500.0,0.00012876,2]
[398255856,1765473043924,-500.0,0.00012876,2]
[398255857,1765473043934,-1097.28,0.00012876,2]
[398255858,1765473043945,-500.0,0.00012876,2]
[398255859,1765473043955,-500.0,0.00012876,2]
[398255860,1765473043968,-878.81,0.00012876,2]
[398255861,1765473043978,-1446.65,0.00012876,2]
[398255862,1765473043988,-259.03568603,0.00012876,2]
[398255863,1765473043997,-500.0,0.00012876,2]
[398255864,1765473044008,-500.0,0.00012876,2]
[398255865,1765473044017,-500.0,0.00012876,2]
[398255866,1765473044027,-500.0,0.00012876,2]
[398255867,1765473044037,-724.0,0.00012876,2]
[398255868,1765473044046,-500.0,0.00012876,2]
[398255869,1765473044055,-500.0,0.00012876,2]
[398255870,1765473044065,-500.0,0.00012876,2]
[398255871,1765473044074,-672.09,0.00012876,2]
[398255872,1765473044083,-540.2,0.00012876,2]
[398255873,1765473044093,-500.0,0.00012876,2]
[398255874,1765473044102,-1325.77,0.00012876,2]
[398255875,1765473044111,-500.0,0.00012876,2]
[398255876,1765473044120,-500.0,0.00012876,2]
[398255877,1765473044129,-500.0,0.00012876,2]
[398255878,1765473044139,-500.0,0.00012876,2]
[398255879,1765473044148,-500.0,0.00012876,2]
[398255880,1765473044158,-500.0,0.00012876,2]
[398255881,1765473044167,-921.35,0.00012876,2]
[398255882,1765473044176,-790.82,0.00012876,2]
[398255883,1765473044189,-500.0,0.00012876,2]
[398255884,1765473044202,-1499.79,0.00012876,2]
[398255885,1765473044212,-500.0,0.00012876,2]
[398255886,1765473044223,-500.0,0.00012876,2]
[398255887,1765473044233,-500.1035971,0.00012876,2]
[398255888,1765473044243,-500.0,0.00012876,2]
[398255889,1765473044253,-500.16649569,0.00012876,2]
[398255890,1765473044263,-500.0,0.00012876,2]
[398255891,1765473044272,-740.19,0.00012876,2]
[398255892,1765473044282,-583.67,0.00012876,2]
[398255893,1765473044291,-500.0,0.00012876,2]
[398255894,1765473044300,-500.0,0.00012876,2]
[398255895,1765473044310,-933.59,0.00012876,2]
[398255896,1765473044319,-1548.83,0.00012876,2]
[398255897,1765473044328,-500.0,0.00012876,2]
[398255898,1765473044338,-500.0,0.00012876,2]
[398255899,1765473044348,-647.22,0.00012876,2]
[398255900,1765473044357,-500.0,0.00012876,2]
[398255901,1765473044367,-942.57,0.00012876,2]
[398255902,1765473044377,-500.0,0.00012876,2]
[398255903,1765473044387,-500.0,0.00012876,2]
[398255904,1765473044396,-500.0,0.00012876,2]
[398255905,1765473044406,-2824.48,0.00012876,2]
[398255906,1765473044415,-845.83,0.00012876,2]
[398255907,1765473044425,-500.0,0.00012876,2]